bitfinex-derivatives/quotes_BTCF0:USTF0_20251130
["timestamp","ask_amount","ask_price","bid_price","bid_amount"]
[1764504117836,0.24595278,91131.0,91130.0,0.05868]
[1764504119034,0.24795278,91131.0,91130.0,0.06268]
[1764504121039,0.24795278,91131.0,91130.0,0.05968]
[1764504121540,0.24595278,91131.0,91130.0,0.05868]
[1764504121742,0.24895278,91131.0,91130.0,0.05968]
[1764504122635,0.003,91131.0,91130.0,0.05968]
[1764504130145,0.00468,91131.0,91130.0,0.05968]
[1764504130950,0.24577408,91131.0,91130.0,0.05968]
[1764504133144,0.52577408,91131.0,91130.0,0.001]
[1764504133460,0.55013759,91131.0,91130.0,0.001]
[1764504136649,0.00168,91122.0,91121.0,0.00016463]
[1764504136843,0.40168,91122.0,91121.0,0.00016463]
[1764504137048,0.54814016,91122.0,91121.0,0.04374463]
[1764504137850,0.55014016,91122.0,91121.0,0.04474463]
[1764504148363,0.52577665,91122.0,91121.0,0.04474463]
[1764504148765,0.55026312,91122.0,91121.0,0.04474463]
[1764504150956,0.15026312,91122.0,91121.0,0.04474463]
[1764504151162,0.15577665,91122.0,91121.0,0.04474463]
[1764504151660,0.12493665,91122.0,91121.0,0.04474463]
[1764504152162,0.12577665,91122.0,91121.0,0.04474463]
[1764504154871,0.13577665,91122.0,91121.0,0.04474463]
[1764504157384,0.16028372,91122.0,91121.0,0.04474463]
[1764504157569,0.16028467,91122.0,91121.0,0.04474463]
[1764504159785,0.15028467,91122.0,91121.0,0.04474463]
[1764504159977,0.52028467,91122.0,91121.0,0.00116463]
[1764504160175,0.00168,91111.0,91110.0,0.03665]
[1764504160484,0.50451343,91111.0,91110.0,0.03665]
[1764504160687,0.50451343,91111.0,91110.0,0.05868]
[1764504161487,0.50651343,91111.0,91110.0,0.05868]
[1764504162080,0.50651343,91111.0,91110.0,0.05968]
[1764504162472,0.50651343,91111.0,91110.0,0.001]
[1764504164591,0.50851343,91111.0,91110.0,0.001]
[1764504165089,0.00168,91102.0,91101.0,0.04530463]
[1764504165392,0.50421158,91102.0,91101.0,0.04530463]
[1764504165580,0.5287196,91102.0,91101.0,0.00016463]
[1764504166090,0.5307196,91102.0,91101.0,0.00016463]
[1764504167679,0.00168,91091.0,91090.0,0.05832]
[1764504167884,0.00084,91091.0,91090.0,0.05832]
[1764504168084,0.14764291,91091.0,91090.0,0.05832]
[1764504168293,0.12385016,91091.0,91090.0,0.05832]
[1764504168493,0.12469016,91091.0,91090.0,0.05832]
[1764504168894,0.12469016,91091.0,91090.0,0.05932]
[1764504169094,0.12669016,91091.0,91090.0,0.05932]
[1764504169289,0.29669016,91091.0,91090.0,0.05932]
[1764504169495,0.29669016,91091.0,91090.0,0.07183952]
[1764504170087,0.42669016,91091.0,91090.0,0.07183952]
[1764504178799,0.42669016,91091.0,91090.0,0.01351952]
[1764504179798,0.45107788,91091.0,91090.0,0.01351952]
[1764504180399,0.00168,91087.0,91075.0,0.0128455]
[1764504180596,0.00168,91076.0,91075.0,0.0580055]
[1764504180802,0.12168,91076.0,91075.0,0.0580055]
[1764504181001,0.24591829,91076.0,91075.0,0.07057452]
[1764504181801,0.24991829,91076.0,91075.0,0.07057452]
[1764504187401,0.24591829,91076.0,91075.0,0.07057452]
[1764504187710,0.24991829,91076.0,91075.0,0.07057452]
[1764504189699,0.45991829,91076.0,91075.0,0.07057452]
[1764504190511,0.45591829,91076.0,91075.0,0.07057452]
[1764504190701,0.45991829,91076.0,91075.0,0.07057452]
[1764504192110,0.45991829,91076.0,91075.0,0.05781452]
[1764504192506,0.45991829,91076.0,91075.0,0.03598452]
[1764504192711,0.48432571,91076.0,91075.0,0.01265452]
[1764504193314,0.45991829,91076.0,91075.0,0.01265452]
[1764504193506,0.48399128,91076.0,91075.0,0.01265452]
[1764504194016,0.48399128,91076.0,91075.0,8.55e-05]
[1764504196410,0.48315128,91076.0,91075.0,0.01288]
[1764504196615,0.00168,91071.0,91070.0,0.05688]
[1764504196806,0.41168,91071.0,91070.0,0.05688]
[1764504197016,0.55099412,91071.0,91070.0,0.05688]
[1764504197212,0.52692113,91071.0,91070.0,0.05688]
[1764504197413,0.55108695,91071.0,91070.0,0.05688]
[1764504197706,0.55408695,91071.0,91070.0,0.05688]
[1764504198704,0.25917584,91071.0,91070.0,0.05688]
[1764504198914,0.14309471,91071.0,91070.0,0.05688]
[1764504199314,0.00309471,91071.0,91070.0,0.05688]
[1764504199712,0.02309471,91071.0,91070.0,0.05688]
[1764504203509,0.00016463,91080.0,91079.0,0.04482]
[1764504204004,0.09840991,91120.0,91075.0,0.01289]
[1764504204005,0.07848873,91117.0,91080.0,0.01289]
[1764504204208,0.17708329,91116.0,91080.0,0.01289]
[1764504204409,0.160717,91100.0,91099.0,0.04482]
[1764504204710,0.19262329,91100.0,91099.0,0.04482]
[1764504204910,0.30731206,91100.0,91099.0,0.04482]
[1764504206519,0.31731206,91100.0,91099.0,0.04482]
[1764504206908,0.30731206,91100.0,91099.0,0.04482]
[1764504207109,0.31731206,91100.0,91099.0,0.04582]
[1764504207510,0.29804206,91100.0,91099.0,0.04582]
[1764504207718,0.18335329,91100.0,91099.0,0.04582]
[1764504208219,0.16408329,91100.0,91099.0,0.04582]
[1764504208420,0.01,91100.0,91099.0,0.04582]
[1764504214211,0.04854,91100.0,91099.0,0.04582]
[1764504214618,0.16987565,91100.0,91099.0,0.04582]
[1764504215121,0.16987565,91100.0,91099.0,0.001]
[1764504215418,0.16987565,91100.0,91099.0,0.02347]
[1764504216123,0.17987565,91100.0,91099.0,0.02347]
[1764504216821,0.17987565,91100.0,91099.0,0.04582]
[1764504218126,0.16987565,91100.0,91099.0,0.04582]
[1764504218325,0.37987565,91100.0,91099.0,0.04582]
[1764504225627,0.55987565,91100.0,91099.0,0.04582]
[1764504228120,0.01,91100.0,91099.0,0.04582]
[1764504235032,0.04854,91100.0,91099.0,0.04582]
[1764504241134,0.34937735,91100.0,91099.0,0.001]
[1764504245351,0.55937735,91100.0,91099.0,0.001]
[1764504255452,0.55937735,91100.0,91099.0,0.04505]
[1764504261959,0.55937735,91100.0,91099.0,0.02206]
[1764504262161,0.55937735,91100.0,91099.0,0.001]
[1764504262851,0.55937735,91100.0,91099.0,0.02225]
[1764504263854,0.56900735,91100.0,91099.0,0.001]
[1764504264449,0.55937735,91100.0,91099.0,0.001]
[1764504267262,0.55937735,91100.0,91099.0,0.04509]
[1764504267856,0.55937735,91100.0,91099.0,0.001]
[1764504269457,0.55937735,91100.0,91099.0,0.04509]
[1764504274168,0.52083735,91100.0,91099.0,0.04509]
[1764504274858,0.40368028,91100.0,91099.0,0.04509]
[1764504275671,0.42295028,91100.0,91099.0,0.04509]
[1764504276367,0.41854,91100.0,91099.0,0.04509]
[1764504277383,0.39927,91100.0,91099.0,0.04509]
[1764504277676,0.38,91100.0,91099.0,0.04509]
[1764504279877,0.39927,91100.0,91099.0,0.04509]
[1764504280777,0.41854,91100.0,91099.0,0.04509]
[1764504290985,0.41854,91100.0,91099.0,0.02225]
[1764504291183,0.41854,91100.0,91099.0,0.04466]
[1764504298282,0.44223777,91100.0,91099.0,0.04466]
[1764504299091,0.42296777,91100.0,91099.0,0.04466]
[1764504299295,0.12296777,91100.0,91099.0,0.04466]
[1764504300392,0.10369777,91100.0,91099.0,0.04466]
[1764504300585,0.08,91100.0,91099.0,0.04466]
[1764504300893,0.09927,91100.0,91099.0,0.04466]
[1764504301586,0.11854,91100.0,91099.0,0.04466]
[1764504305193,0.08,91100.0,91099.0,0.04466]
[1764504305996,0.09927,91100.0,91099.0,0.04466]
[1764504308596,0.02927,91100.0,91099.0,0.04466]
[1764504308798,0.01,91100.0,91099.0,0.04466]
[1764504309997,0.00531077,91100.0,91099.0,0.04466]
[1764504310196,0.04267463,91109.0,91108.0,0.05775]
[1764504310595,0.04267463,91109.0,91108.0,0.13670036]
[1764504310898,0.00016463,91109.0,91108.0,0.13670036]
[1764504311295,0.00016463,91109.0,91108.0,0.05775]
[1764504311889,0.00216463,91109.0,91108.0,0.06375]
[1764504312487,0.00016463,91109.0,91108.0,0.06375]
[1764504312691,0.00216463,91109.0,91108.0,0.06375]
[1764504315902,0.00216463,91109.0,91108.0,0.46375]
[1764504317002,0.03790463,91117.0,91116.0,0.05687]
[1764504317195,0.03790463,91117.0,91116.0,0.13564158]
[1764504317396,0.03790463,91117.0,91116.0,0.05687]
[1764504317702,0.00963,91152.0,91125.0,0.04394]
[1764504318005,4.35e-06,91126.0,91125.0,0.04394]
[1764504318204,0.00016463,91135.0,91134.0,0.04394]
[1764504319805,0.00316463,91135.0,91134.0,0.04494]
[1764504321009,0.00416463,91135.0,91134.0,0.04494]
[1764504324108,0.02695463,91135.0,91134.0,0.04494]
[1764504324309,0.00416463,91135.0,91134.0,0.04494]
[1764504336827,0.02695463,91135.0,91134.0,0.04494]
[1764504337031,0.04959463,91135.0,91134.0,0.04494]
[1764504337633,0.02695463,91135.0,91134.0,0.04494]
[1764504339435,0.00416463,91135.0,91134.0,0.04494]
[1764504340134,0.02695463,91135.0,91134.0,0.04494]
[1764504342034,0.04959463,91135.0,91134.0,0.04494]
[1764504342236,0.00416463,91135.0,91134.0,0.04494]
[1764504343429,0.04830463,91135.0,91134.0,0.04494]
[1764504343736,0.00416463,91135.0,91134.0,0.04494]
[1764504344934,4.63e-06,91135.0,91134.0,0.04494]
[1764504345130,0.03545,91144.0,91143.0,0.04554]
[1764504345638,0.04367423,91166.0,91165.0,0.02234]
[1764504345834,0.25720781,91166.0,91165.0,0.02234]
[1764504346135,0.38441671,91166.0,91165.0,0.04554]
[1764504346336,0.38441671,91166.0,91165.0,0.05740134]
[1764504346637,0.38441671,91166.0,91165.0,0.01186134]
[1764504346828,0.0434,91157.0,91156.0,0.05881454]
[1764504347028,0.06693358,91157.0,91156.0,0.05881454]
[1764504348228,0.06793358,91157.0,91156.0,0.07773307]
[1764504352441,0.06793358,91157.0,91156.0,0.06462307]
[1764504352642,0.06793358,91157.0,91156.0,0.07773307]
[1764504355648,0.06793358,91157.0,91156.0,0.01908307]
[1764504356735,0.06793358,91157.0,91156.0,0.04142307]
[1764504356736,0.07793358,91157.0,91156.0,0.04142307]
[1764504356936,0.06793358,91157.0,91156.0,0.04142307]
[1764504357438,0.18793358,91157.0,91156.0,0.06462307]
[1764504357641,0.17913358,91157.0,91156.0,0.07773307]
[1764504358239,0.1556,91157.0,91156.0,0.07773307]
[1764504361541,0.001,91157.0,91156.0,0.07773307]
[1764504362947,0.001,91157.0,91156.0,0.15640891]
[1764504363147,0.001,91157.0,91156.0,0.07773307]
[1764504364450,0.03791,91163.0,91162.0,0.04554]
[1764504364746,0.00027423,91166.0,91165.0,0.04554]
[1764504367053,0.00127423,91166.0,91165.0,0.05054]
[1764504368346,0.00127423,91166.0,91165.0,0.12928682]
[1764504369354,0.00127423,91166.0,91165.0,0.05054]
[1764504376653,0.03791,91170.0,91169.0,0.04276]
[1764504377052,0.00531,91200.0,91174.0,0.04276]
[1764504377366,0.00627,91205.0,91174.0,0.04276]
[1764504377666,0.00991,91215.0,91174.0,0.04276]
[1764504377844,0.00963,91215.0,91174.0,0.04276]
[1764504378044,0.30453411,91206.0,91205.0,0.04276]
[1764504379362,0.30553411,91206.0,91205.0,0.04276]
[1764504379660,0.30753411,91206.0,91205.0,0.04376]
[1764504380650,0.04753411,91206.0,91205.0,0.04376]
[1764504381153,0.05753411,91206.0,91205.0,0.04376]
[1764504381349,0.04753411,91206.0,91205.0,0.04376]
[1764504382552,0.04553411,91206.0,91205.0,0.05076]
[1764504382751,0.61190925,91206.0,91205.0,0.008]
[1764504383254,0.04426,91197.0,91196.0,0.00016454]
[1764504384763,0.56708099,91197.0,91196.0,0.00016454]
[1764504385256,0.56808099,91197.0,91196.0,0.00716454]
[1764504385763,0.56708099,91197.0,91196.0,0.00016454]
[1764504385952,0.56908099,91197.0,91196.0,0.00316454]
[1764504386458,0.56808099,91197.0,91196.0,0.00116454]
[1764504386660,0.04294,91174.0,91173.0,0.08170731]
[1764504386963,0.04294,91174.0,91173.0,0.04238]
[1764504387859,0.00016454,91183.0,91182.0,0.04238]
[1764504388060,0.04310454,91183.0,91182.0,0.04238]
[1764504389065,0.04294,91176.0,91175.0,0.05572]
[1764504390968,0.04394,91176.0,91175.0,0.06172]
[1764504391468,0.04294,91176.0,91175.0,0.05572]
[1764504391654,0.04394,91176.0,91175.0,0.05972]
[1764504392257,0.04394,91176.0,91175.0,0.02518]
[1764504392762,0.04394,91176.0,91175.0,0.04638]
[1764504394070,0.04394,91176.0,91175.0,0.004]
[1764504394569,0.04294,91166.0,91165.0,0.05572]
[1764504394764,0.04294,91166.0,91164.0,0.03949185]
[1764504394765,0.04294,91165.0,91164.0,0.00016454]
[1764504394970,0.05098,91165.0,91164.0,0.00016454]
[1764504396569,0.1735602,91165.0,91164.0,0.00016454]
[1764504397473,0.1735602,91165.0,91164.0,0.00316454]
[1764504399174,0.1655202,91165.0,91164.0,0.02434454]
[1764504399371,0.1655202,91165.0,91164.0,0.04554454]
[1764504401272,0.02141,91165.0,91164.0,0.04554454]
[1764504401478,0.04310454,91183.0,91182.0,0.05572]
[1764504402574,0.04310454,91183.0,91175.0,0.01334]
[1764504402779,0.04294,91171.0,91170.0,0.03452]
[1764504402983,0.04294,91171.0,91170.0,0.05572]
[1764504404371,0.001,91171.0,91170.0,0.06072]
[1764504404981,0.04516454,91183.0,91182.0,0.05864]
[1764504405775,0.045,91177.0,91176.0,0.05864]
[1764504406774,0.00016454,91183.0,91182.0,0.02327]
[1764504406980,0.00016454,91183.0,91182.0,0.05864]
[1764504406981,0.04516454,91183.0,91182.0,0.05864]
[1764504407179,0.00016454,91183.0,91182.0,0.05864]
[1764504407582,0.02282454,91183.0,91182.0,0.05864]
[1764504407779,0.04516454,91183.0,91182.0,0.05864]
[1764504408380,0.04516454,91183.0,91182.0,0.06264]
[1764504409686,0.04516454,91183.0,91182.0,0.05864]
[1764504409887,0.04516454,91183.0,91182.0,0.06264]
[1764504410286,0.04516454,91183.0,91182.0,0.05864]
[1764504410488,0.04516454,91183.0,91182.0,0.06264]
[1764504410889,0.04516454,91183.0,91182.0,0.05864]
[1764504411189,0.04516454,91183.0,91182.0,0.06264]
[1764504411384,0.04516454,91183.0,91182.0,0.04996]
[1764504412387,0.04516454,91183.0,91182.0,0.06264]
[1764504415891,0.04527411,91206.0,91205.0,0.04596]
[1764504416090,0.04527411,91206.0,91205.0,0.02327]
[1764504417191,0.04827411,91206.0,91205.0,0.02327]
[1764504417587,0.045,91201.0,91200.0,0.04596]
[1764504417788,0.045,91197.0,91196.0,0.04612454]
[1764504419794,0.046,91197.0,91196.0,0.04612454]
[1764504420797,0.047,91197.0,91196.0,0.04612454]
[1764504423799,0.002,91197.0,91196.0,0.04612454]
[1764504425096,0.02466,91197.0,91196.0,0.04612454]
[1764504425396,0.047,91197.0,91196.0,0.04612454]
[1764504431317,0.002,91197.0,91196.0,0.04612454]
[1764504431618,0.03735411,91206.0,91205.0,0.04596]
[1764504431924,0.03735411,91206.0,91205.0,0.10497364]
[1764504432116,0.00027411,91206.0,91205.0,0.10497364]
[1764504432312,0.00027411,91206.0,91205.0,0.04596]
[1764504432512,0.00027411,91206.0,91205.0,0.10497364]
[1764504432911,0.00127411,91206.0,91205.0,0.11197364]
[1764504433114,0.00127411,91206.0,91205.0,0.05296]
[1764504433420,0.00127411,91206.0,91205.0,0.11195227]
[1764504434223,0.00027411,91206.0,91205.0,0.11095227]
[1764504434416,0.00127411,91206.0,91205.0,0.11095227]
[1764504434812,0.00027411,91206.0,91205.0,0.10495227]
[1764504435013,0.00127411,91206.0,91205.0,0.11095227]
[1764504436025,0.04771411,91206.0,91205.0,0.05196]
[1764504436621,0.04771411,91206.0,91205.0,0.09128234]
[1764504438321,0.04671411,91206.0,91205.0,0.08528234]
[1764504438527,0.04771411,91206.0,91205.0,0.09128234]
[1764504438729,0.04771411,91206.0,91205.0,0.05196]
[1764504439112,0.04771411,91206.0,91205.0,0.08145428]
[1764504440518,0.04771411,91206.0,91205.0,0.08045428]
[1764504441014,0.04671411,91206.0,91205.0,0.04596]
[1764504441218,0.04771411,91206.0,91205.0,0.02927]
[1764504441418,0.04771411,91206.0,91205.0,0.006]
[1764504441624,0.04578,91201.0,91200.0,0.03483]
[1764504441814,0.04578,91201.0,91200.0,0.05583]
[1764504443936,0.04578,91201.0,91200.0,0.05983]
[1764504444424,0.04578,91201.0,91200.0,0.04715]
[1764504445221,0.04578,91201.0,91200.0,0.07664428]
[1764504447123,0.04578,91201.0,91200.0,0.04715]
[1764504447629,0.04578,91201.0,91200.0,0.06004]
[1764504450214,0.04578,91201.0,91200.0,0.05604]
[1764504450416,0.04578,91201.0,91200.0,0.05804]
[1764504454828,0.08578,91201.0,91200.0,0.04142596]
[1764504455026,0.08578,91201.0,91200.0,0.04607]
[1764504455226,0.08578,91201.0,91200.0,0.05912]
[1764504455425,0.04578,91201.0,91200.0,0.05912]
[1764504456832,0.08578,91201.0,91200.0,0.04607]
[1764504457133,0.08578,91201.0,91200.0,0.04407]
[1764504457333,0.08578,91201.0,91200.0,0.04707]
[1764504457634,0.21142872,91201.0,91200.0,0.003]
[1764504457839,0.04287,91197.0,91196.0,0.00016454]
[1764504458034,0.10287,91197.0,91196.0,0.02126454]
[1764504458533,0.10287,91197.0,91196.0,0.04423454]
[1764504459324,0.10287,91197.0,91196.0,0.00016454]
[1764504459831,0.10287,91197.0,91196.0,0.02126454]
[1764504460033,0.10287,91197.0,91196.0,0.04523454]
[1764504463638,0.04436411,91206.0,91205.0,0.0587]
[1764504463828,0.05436411,91206.0,91205.0,0.0587]
[1764504464027,0.17766838,91206.0,91205.0,0.0587]
[1764504464737,0.17866838,91206.0,91205.0,0.0587]
[1764504465330,0.18066838,91206.0,91205.0,0.0587]
[1764504466337,0.18066838,91206.0,91205.0,0.0458]
[1764504469538,0.04409,91197.0,91196.0,0.04596454]
[1764504469739,0.14409,91197.0,91196.0,0.04596454]
[1764504470430,0.25839755,91197.0,91196.0,0.04596454]
[1764504471529,0.25839755,91197.0,91196.0,0.04696454]
[1764504472440,0.25839755,91197.0,91196.0,0.04596454]
[1764504472639,0.25839755,91197.0,91196.0,0.04696454]
[1764504476138,0.25839755,91197.0,91196.0,0.0863905]
[1764504476443,0.25839755,91197.0,91196.0,0.00116454]
[1764504476834,0.25839755,91197.0,91196.0,0.02397454]
[1764504477136,0.25839755,91197.0,91196.0,0.04696454]
[1764504482243,0.25839755,91197.0,91196.0,0.04596454]
[1764504482429,0.25839755,91197.0,91196.0,0.04696454]
[1764504484941,0.09636,91205.0,91204.0,0.0458]
[1764504485942,0.09736,91205.0,91204.0,0.0458]
[1764504486244,0.04509,91205.0,91204.0,0.0458]
[1764504486439,0.08509,91205.0,91204.0,0.0458]
[1764504487038,0.08709,91205.0,91204.0,0.0458]
[1764504487942,0.08609,91205.0,91204.0,0.0458]
[1764504488149,0.08709,91205.0,91204.0,0.0458]
[1764504491951,0.04709,91205.0,91204.0,0.0458]
[1764504492450,0.0256,91205.0,91204.0,0.0458]
[1764504492851,0.003,91205.0,91204.0,0.0458]
[1764504493148,0.02539124,91205.0,91204.0,0.0458]
[1764504494643,0.0397,91213.0,91212.0,0.04547]
[1764504495152,0.04455454,91215.0,91214.0,0.04547]
[1764504496850,0.08855454,91215.0,91214.0,0.04547]
[1764504497350,0.04955454,91215.0,91214.0,0.04547]
[1764504501552,0.04439,91207.0,91206.0,0.10463665]
[1764504501852,0.04439,91207.0,91206.0,0.04547]
[1764504503058,0.04539,91207.0,91206.0,0.04547]
[1764504503459,0.04639,91207.0,91206.0,0.04547]
[1764504505163,0.04354,91200.0,91199.0,0.0459]
[1764504505458,0.09354,91200.0,91199.0,0.0459]
[1764504506455,0.09354,91200.0,91199.0,0.0469]
[1764504508059,0.5895229,91200.0,91199.0,0.001]
[1764504508249,0.5895229,91200.0,91180.0,0.01343]
[1764504508250,0.04354,91183.0,91182.0,0.0459]
[1764504509755,0.04454,91183.0,91182.0,0.0519]
[1764504510360,0.04354,91183.0,91182.0,0.06533]
[1764504510857,0.04370454,91192.0,91191.0,0.0459]
[1764504511171,0.45254454,91192.0,91191.0,0.0459]
[1764504512064,0.47370454,91192.0,91191.0,0.0459]
[1764504512264,0.47370454,91192.0,91191.0,0.0479]
[1764504512663,0.47370454,91192.0,91191.0,0.002]
[1764504512862,0.47370454,91192.0,91191.0,0.02581]
[1764504513163,0.47370454,91192.0,91191.0,0.0489]
[1764504514566,0.47370454,91192.0,91191.0,0.0459]
[1764504514766,0.47370454,91192.0,91191.0,0.0479]
[1764504518865,0.45254454,91192.0,91191.0,0.0479]
[1764504519373,0.47370454,91192.0,91191.0,0.02481]
[1764504520671,0.47370454,91192.0,91191.0,0.0479]
[1764504520859,0.47370454,91192.0,91191.0,0.0489]
[1764504521374,0.47370454,91192.0,91191.0,0.0459]
[1764504521669,0.47370454,91192.0,91191.0,0.0479]
[1764504522065,0.47370454,91192.0,91191.0,0.0489]
[1764504523560,0.47370454,91192.0,91191.0,0.0479]
[1764504524262,0.47370454,91192.0,91191.0,0.0489]
[1764504524871,0.47370454,91192.0,91191.0,0.0479]
[1764504525368,0.47370454,91192.0,91191.0,0.0489]
[1764504526863,0.47370454,91192.0,91191.0,0.0459]
[1764504527062,0.47370454,91192.0,91191.0,0.0479]
[1764504527462,0.47370454,91192.0,91191.0,0.0489]
[1764504527967,0.59945911,91192.0,91173.0,0.00016454]
[1764504528164,0.59892911,91192.0,91191.0,0.002]
[1764504528469,0.04301,91174.0,91173.0,0.00016454]
[1764504528670,0.09301,91174.0,91173.0,0.00016454]
[1764504529069,0.09301,91174.0,91173.0,0.02256454]
[1764504529670,0.09301,91174.0,91173.0,0.00016454]
[1764504529875,0.21114237,91174.0,91173.0,0.00016454]
[1764504530371,0.21114237,91174.0,91173.0,0.00316454]
[1764504531279,0.21114237,91174.0,91173.0,0.02556454]
[1764504531570,0.16114237,91174.0,91173.0,0.04809454]
[1764504532868,0.16114237,91174.0,91173.0,0.04509454]
[1764504533173,0.16114237,91174.0,91173.0,0.04709454]
[1764504533373,0.16114237,91174.0,91173.0,0.04509454]
[1764504533568,0.16114237,91174.0,91173.0,0.04709454]
[1764504540882,0.05521,91188.0,91187.0,0.04493]
[1764504541070,0.47880334,91188.0,91187.0,0.04493]
[1764504541271,0.59167104,91188.0,91187.0,0.04493]
[1764504541775,0.46660334,91188.0,91187.0,0.04493]
[1764504541976,0.44301,91188.0,91187.0,0.04493]
[1764504542174,0.44501,91188.0,91187.0,0.04493]
[1764504543079,0.44601,91188.0,91187.0,0.04493]
[1764504543274,0.44401,91188.0,91187.0,0.04493]
[1764504543482,0.44401,91188.0,91187.0,0.04693]
[1764504543671,0.44301,91188.0,91187.0,0.04693]
[1764504548377,0.44301,91188.0,91187.0,0.04493]
[1764504548582,0.46661143,91188.0,91187.0,0.04693]
[1764504553088,0.46661143,91188.0,91187.0,0.002]
[1764504557284,0.04376,91174.0,91173.0,0.04369454]
[1764504557486,0.19376,91174.0,91173.0,0.04369454]
[1764504558891,0.19376,91174.0,91173.0,0.04569454]
[1764504564792,0.19376,91174.0,91173.0,0.04369454]
[1764504564991,0.19376,91174.0,91173.0,0.04469454]
[1764504568600,0.19376,91174.0,91173.0,0.00116454]
[1764504570405,0.19376,91174.0,91173.0,0.00016454]
[1764504570603,0.19376,91174.0,91173.0,0.00216454]
[1764504570994,0.21763148,91174.0,91173.0,0.00016454]
[1764504571191,0.21763148,91174.0,91173.0,0.00216454]
[1764504573103,0.19376,91174.0,91173.0,0.00216454]
[1764504574707,0.04376,91174.0,91173.0,0.04636454]
[1764504574907,0.08376,91174.0,91173.0,0.04636454]
[1764504576111,0.04376,91174.0,91173.0,0.04436454]
[1764504576411,0.04376,91174.0,91173.0,0.04636454]
[1764504576801,0.08376,91174.0,91173.0,0.04636454]
[1764504578812,0.10762523,91174.0,91173.0,0.04636454]
[1764504584803,0.08376,91174.0,91173.0,0.04636454]
[1764504585004,0.04027,91177.0,91176.0,0.05793]
[1764504585203,0.19408911,91177.0,91176.0,0.05793]
[1764504585604,0.21511911,91177.0,91176.0,0.05793]
[1764504585909,0.23787911,91177.0,91176.0,0.05793]
[1764504586108,0.23787974,91177.0,91176.0,0.05793]
[1764504586613,0.23787974,91177.0,91176.0,0.05893]
[1764504587006,0.17027,91177.0,91176.0,0.05893]
[1764504588508,0.17027,91177.0,91176.0,0.05993]
[1764504588707,0.1913,91177.0,91176.0,0.05993]
[1764504589015,0.1923,91177.0,91176.0,0.06193]
[1764504590113,0.21506,91177.0,91176.0,0.06193]
[1764504590315,0.04127,91177.0,91176.0,0.06193]
[1764504590518,0.00010546,91177.0,91176.0,0.06193]
[1764504590718,0.00016454,91192.0,91191.0,0.04405]
[1764504590918,0.04395454,91192.0,91191.0,0.04405]
[1764504593307,0.04395454,91192.0,91191.0,0.04505]
[1764504595219,0.00016454,91192.0,91191.0,0.04505]
[1764504599617,0.00016454,91192.0,91191.0,0.12395165]
[1764504599825,0.00016454,91192.0,91191.0,0.04505]
[1764504601425,0.00016454,91192.0,91191.0,0.12366918]
[1764504601724,0.00016454,91192.0,91191.0,0.04505]
[1764504608131,0.0302,91200.0,91199.0,0.04405]
[1764504608632,0.05772,91220.0,91219.0,0.04405]
[1764504608822,0.19772,91220.0,91219.0,0.04405]
[1764504610634,0.04379,91211.0,91210.0,0.04421444]
[1764504611733,0.04479,91211.0,91210.0,0.04421444]
[1764504612139,0.04779,91211.0,91210.0,0.04421444]
[1764504618146,0.004,91211.0,91210.0,0.04421444]
[1764504619446,0.02697,91211.0,91210.0,0.04421444]
[1764504619849,0.04923,91211.0,91210.0,0.04421444]
[1764504620241,0.02697,91211.0,91210.0,0.04421444]
[1764504621939,0.004,91211.0,91210.0,0.04421444]
[1764504622752,0.0253,91211.0,91210.0,0.04421444]
[1764504624850,0.004,91211.0,91210.0,0.04421444]
[1764504626048,0.0253,91211.0,91210.0,0.04421444]
[1764504626352,0.04645,91211.0,91210.0,0.04421444]
[1764504629459,0.04645,91211.0,91210.0,0.00016444]
[1764504629956,0.04645,91211.0,91210.0,0.02140444]
[1764504630159,0.04645,91211.0,91210.0,0.04305444]
[1764504640462,0.04645,91211.0,91210.0,0.12167362]
[1764504641768,0.0253,91211.0,91210.0,0.12167362]
[1764504641973,0.04645,91211.0,91210.0,0.12167362]
[1764504642176,0.0253,91211.0,91210.0,0.12167362]
[1764504642466,0.004,91211.0,91210.0,0.12167362]
[1764504642671,0.004,91211.0,91210.0,0.04305444]
[1764504643571,0.0253,91211.0,91210.0,0.04305444]
[1764504643972,0.04789,91211.0,91210.0,0.04305444]
[1764504645268,0.004,91211.0,91210.0,0.04305444]
[1764504646576,0.04922,91211.0,91210.0,0.04305444]
[1764504648776,0.04922,91211.0,91210.0,0.12198108]
[1764504649468,0.04922,91211.0,91210.0,0.10033108]
[1764504649873,0.04922,91211.0,91210.0,0.12159108]
[1764504651177,0.04922,91211.0,91210.0,0.10033108]
[1764504651376,0.04922,91211.0,91210.0,0.12159108]
[1764504655877,0.004,91211.0,91210.0,0.04266444]
[1764504656084,0.02663,91211.0,91210.0,0.04266444]
[1764504657181,0.04922,91211.0,91210.0,0.04266444]
[1764504658280,0.004,91211.0,91210.0,0.04266444]
[1764504659084,0.02663,91211.0,91210.0,0.04266444]
[1764504660182,0.04922,91211.0,91210.0,0.04266444]
[1764504662577,0.004,91211.0,91210.0,0.04266444]
[1764504663984,0.003,91211.0,91210.0,0.04266444]
[1764504664177,0.02896,91219.0,91210.0,0.04266444]
[1764504664178,0.05159,91219.0,91218.0,0.04377]
[1764504664574,0.04522,91219.0,91218.0,0.04377]
[1764504665580,0.04522,91219.0,91218.0,0.04577]
[1764504671490,0.04522,91219.0,91218.0,0.02451]
[1764504671688,0.04522,91219.0,91218.0,0.04577]
[1764504681697,0.04597,91228.0,91227.0,0.04437]
[1764504683088,0.0596,91228.0,91227.0,0.04437]
[1764504685691,0.04697,91228.0,91227.0,0.04437]
[1764504685888,0.001,91228.0,91227.0,0.04437]
[1764504686192,0.04452,91228.0,91227.0,0.04437]
[1764504686391,0.04452,91228.0,91227.0,0.12319081]
[1764504686702,0.02287,91228.0,91227.0,0.04437]
[1764504686996,0.001,91228.0,91227.0,0.04437]
[1764504687199,0.02287,91228.0,91227.0,0.04437]
[1764504688399,0.001,91228.0,91227.0,0.04437]
[1764504689801,0.02287,91228.0,91227.0,0.04437]
[1764504690402,0.04452,91228.0,91227.0,0.04437]
[1764504700707,0.04352,91222.0,91221.0,0.14237434]
[1764504702412,0.01263,91224.0,91221.0,0.14237434]
[1764504702413,0.02203444,91229.0,91228.0,0.0438]